bitfinex/quotes_SOLUSD_20240620
["timestamp","ask_amount","ask_price","bid_price","bid_amount"]
[1718853037311,7.4852,133.6,133.55,7.4876]
[1718853038012,49.09137987,133.62,133.54,6.0946]
[1718853038310,7.4864,133.58,133.53,7.4886]
[1718853038518,7.4867,133.57,133.52,7.4893]
[1718853038697,7.4873,133.56,133.51,7.4899]
[1718853039106,7.4874,133.56,133.51,7.4899]
[1718853039600,7.4874,133.56,133.5,13.8076]
[1718853039813,30.0774,133.56,133.51,7.4898]
[1718853040522,22.59,133.56,133.51,7.4898]
[1718853040709,30.0773,133.56,133.5,6.3172]
[1718853041218,22.59,133.56,133.51,7.4897]
[1718853041402,22.59,133.56,133.51,0.17]
[1718853041606,7.4863,133.58,133.53,7.4886]
[1718853041919,30.0756,133.59,133.54,7.4882]
[1718853042122,20.0,133.58,133.54,7.4882]
[1718853042297,20.0,133.58,133.51,0.34]
[1718853042923,7.4868,133.57,133.52,7.4892]
[1718853043514,7.4868,133.57,133.51,7.6598]
[1718853043822,7.4868,133.57,133.51,7.4898]
[1718853044218,27.4863,133.58,133.5,6.4872]
[1718853044405,27.4863,133.58,133.53,7.4886]
[1718853044607,7.4868,133.57,133.52,7.4892]
[1718853045013,7.4873,133.56,133.51,7.4898]
[1718853045406,16.1197,133.55,133.49,0.1]
[1718853045610,7.4889,133.53,133.49,0.1]
[1718853045818,16.1197,133.55,133.49,0.1]
[1718853046119,7.4887,133.54,133.49,7.5911]
[1718853046526,30.0776,133.56,133.51,7.49]
[1718853046724,30.0776,133.56,133.5,7.4903]
[1718853046921,7.4879,133.55,133.5,7.4903]
[1718853047216,22.59,133.56,133.5,7.4903]
[1718853047617,7.4878,133.55,133.5,7.4903]
[1718853047820,30.0773,133.56,133.51,7.4899]
[1718853048007,22.59,133.56,133.49,0.44]
[1718853048322,30.0776,133.56,133.51,7.4899]
[1718853048628,7.4881,133.55,133.5,7.4904]
[1718853049204,30.0775,133.56,133.5,7.4904]
[1718853050025,30.0775,133.56,133.51,7.49]
[1718853050610,22.59,133.56,133.51,7.49]
[1718853052227,22.59,133.56,133.5,7.4903]
[1718853052409,30.0774,133.56,133.49,0.44]
[1718853052933,30.0774,133.56,133.51,7.4897]
[1718853053226,22.59,133.56,133.53,7.4887]
[1718853053424,20.0,133.58,133.5,0.17]
[1718853053633,16.0464,133.59,133.55,7.4878]
[1718853054020,16.0464,133.59,133.56,7.4872]
[1718853054326,7.4846,133.61,133.55,7.4875]
[1718853054510,7.4857,133.59,133.54,7.488]
[1718853055319,7.4861,133.58,133.53,7.4887]
[1718853055509,30.0753,133.6,133.55,7.4877]
[1718853057609,30.0753,133.6,133.54,7.4881]
[1718853057809,7.4857,133.59,133.54,7.4881]
[1718853059935,7.4847,133.61,133.53,0.17]
[1718853060116,7.4847,133.61,133.56,7.4869]
[1718853060315,29.178,133.62,133.52,0.34]
[1718853060635,20.0,133.61,133.55,7.4873]
[1718853061431,7.485,133.6,133.55,7.4873]
[1718853061615,7.485,133.6,133.55,7.4875]
[1718853062130,36.96454101,133.62,133.54,0.17]
[1718853062131,15.27044101,133.62,133.54,0.17]
[1718853062433,22.59,133.61,133.54,0.34]
[1718853062729,30.0747,133.61,133.55,7.4877]
[1718853063031,30.0747,133.61,133.56,7.4871]
[1718853063536,24.04615551,133.63,133.54,0.17]
[1718853063741,24.04615551,133.63,133.59,7.4855]
[1718853063941,31.52965551,133.63,133.58,7.4859]
[1718853064123,7.484,133.62,133.57,7.4866]
[1718853064325,31.52975551,133.63,133.57,7.4866]
[1718853064641,31.52975551,133.63,133.58,7.486]
[1718853064933,31.52975551,133.63,133.57,7.4864]
[1718853065234,7.78675551,133.63,133.54,0.34]
[1718853065415,7.78675551,133.63,133.59,7.4852]
[1718853065615,7.78675551,133.63,133.58,7.4856]
[1718853066038,7.78675551,133.63,133.59,7.4854]
[1718853066610,15.27005551,133.63,133.56,0.17]
[1718853066830,15.27025551,133.63,133.58,7.4858]
[1718853067220,7.78675551,133.63,133.6,7.4849]
[1718853068130,7.78675551,133.63,133.59,7.4855]
[1718853068321,7.78675551,133.63,133.58,7.4858]
[1718853068523,7.484,133.62,133.57,7.4866]
[1718853068920,7.4846,133.61,133.56,7.487]
[1718853069239,30.0746,133.61,133.56,7.487]
[1718853069437,7.78675551,133.63,133.57,7.6567]
[1718853069438,7.55,133.58,133.57,7.6567]
[1718853069815,7.55,133.59,133.58,7.4861]
[1718853071038,7.55,133.59,133.56,7.4872]
[1718853071218,7.55,133.59,133.49,0.1]
[1718853071219,7.55,133.57,133.49,0.1]
[1718853071415,7.55,133.5,133.49,0.1]
[1718853072419,15.0406,133.5,133.49,0.1]
[1718853073422,7.4906,133.5,133.49,0.1]
[1718853073650,37.4906,133.5,133.49,0.1]
[1718853073857,30.0,133.5,133.49,0.1]
[1718853074324,30.46956783,133.54,133.49,0.1]
[1718853074526,7.4906,133.5,133.49,0.1]
[1718853074726,22.68,133.51,133.49,0.1]
[1718853075132,7.489,133.53,133.49,0.1]
[1718853075133,37.95816783,133.54,133.49,0.1]
[1718853075353,30.46956783,133.54,133.49,0.1]
[1718853075522,7.4893,133.53,133.49,0.1]
[1718853075723,7.4898,133.52,133.49,0.1]
[1718853076349,7.4891,133.53,133.49,0.1]
[1718853077442,30.0,133.5,133.49,0.1]
[1718853079748,37.4906,133.5,133.49,0.1]
[1718853080047,30.0,133.5,133.49,0.1]
[1718853080271,37.4906,133.5,133.49,0.1]
[1718853082668,30.0,133.5,133.49,0.1]
[1718853083157,37.4906,133.5,133.49,0.1]
[1718853083651,30.0,133.5,133.49,0.1]
[1718853085559,37.4906,133.5,133.49,0.1]
[1718853085746,30.0,133.5,133.49,0.1]
[1718853088477,30.0,133.5,133.49,7.9311]
[1718853088660,15.28568117,133.55,133.49,7.7611]
[1718853088970,15.28568117,133.55,133.49,7.5911]
[1718853089271,15.28568117,133.55,133.5,7.4904]
[1718853089643,7.4884,133.54,133.49,0.1]
[1718853090574,30.1684,133.54,133.49,7.5908]
[1718853091480,22.68,133.54,133.49,7.5908]
[1718853091652,22.68,133.54,133.5,7.4905]
[1718853091855,22.68,133.54,133.49,0.1]
[1718853092068,7.4889,133.53,133.49,0.1]
[1718853094369,22.68,133.54,133.49,0.1]
[1718853094549,20.0,133.53,133.49,0.1]
[1718853094754,7.4897,133.52,133.49,0.1]
[1718853095569,22.68,133.51,133.49,0.1]
[1718853097470,30.1704,133.51,133.49,0.1]
[1718853097656,30.1701,133.51,133.49,0.1]
[1718853098470,22.68,133.51,133.49,0.1]
[1718853098772,7.4906,133.5,133.49,0.1]
[1718853100362,30.47851063,133.51,133.49,0.1]
[1718853100882,7.4906,133.5,133.49,0.1]
[1718853101062,37.96871063,133.51,133.49,0.1]
[1718853101462,7.4906,133.5,133.49,0.1]
[1718853102075,37.96871063,133.51,133.49,0.1]
[1718853102963,16.4027,133.6,133.49,6.4765]
[1718853103283,22.68,133.58,133.5,0.17]
[1718853103462,22.68,133.58,133.49,6.4765]
[1718853103463,22.68,133.58,133.49,6.3065]
[1718853103669,7.4869,133.57,133.51,7.4897]
[1718853103880,7.4872,133.56,133.51,7.4897]
[1718853104065,7.487,133.57,133.51,7.4897]
[1718853104300,22.68,133.58,133.49,6.3065]
[1718853104458,7.4883,133.55,133.49,13.7973]
[1718853104856,30.1683,133.55,133.49,13.7973]
[1718853105162,30.1683,133.55,133.5,7.4906]
[1718853105983,30.1683,133.55,133.49,13.7975]
[1718853106671,7.4885,133.54,133.49,13.7975]
[1718853107365,30.168,133.55,133.49,13.7975]
[1718853107561,41.4001,133.55,133.49,6.3065]
[1718853107892,7.4885,133.54,133.49,6.3065]
[1718853108263,18.7168,133.57,133.5,7.4904]
[1718853108670,22.68,133.56,133.5,7.4904]
[1718853108892,22.68,133.56,133.49,6.3065]
[1718853109083,22.68,133.53,133.49,0.1]
[1718853109290,7.4897,133.52,133.49,0.1]
[1718853109676,39.0515,133.53,133.49,0.1]
[1718853109992,27.4899,133.52,133.49,0.1]
[1718853112201,7.4902,133.51,133.49,0.1]
[1718853113923,7.4906,133.5,133.49,0.1]
[1718853115199,7.4903,133.51,133.49,0.1]
[1718853115374,20.0,133.52,133.49,0.1]
[1718853115572,7.4905,133.51,133.49,0.1]
[1718853116096,30.48039637,133.53,133.49,0.1]
[1718853116404,7.4886,133.54,133.49,0.1]
[1718853116600,7.4905,133.51,133.49,0.1]
[1718853116897,7.4911,133.49,133.48,0.10053026]
[1718853117792,7.4908,133.5,133.48,0.10053026]
[1718853118382,22.68,133.51,133.48,0.10053026]
[1718853118570,27.491,133.5,133.48,0.10053026]
[1718853118974,22.68,133.51,133.48,0.10053026]
[1718853119584,7.4896,133.52,133.48,0.10053026]
[1718853119788,7.49,133.51,133.48,0.10053026]
[1718853120109,7.4898,133.52,133.48,0.10053026]
[1718853120698,7.4902,133.51,133.48,0.10053026]
[1718853121490,7.4897,133.52,133.48,0.10053026]
[1718853121795,22.68,133.53,133.48,0.10053026]
[1718853121984,13.74478196,133.55,133.48,0.10053026]
[1718853121985,36.42478196,133.55,133.48,0.10053026]
[1718853122185,20.0,133.54,133.48,0.10053026]
[1718853122574,7.4898,133.52,133.48,0.10053026]
[1718853124104,38.7223,133.54,133.48,0.10053026]
[1718853124405,7.4903,133.51,133.48,0.10053026]
[1718853125605,7.4892,133.53,133.48,0.10053026]
[1718853125791,7.56,133.49,133.48,0.10053026]
[1718853126205,7.4896,133.52,133.48,0.10053026]
[1718853126206,7.4891,133.53,133.48,7.59223026]
[1718853126407,7.489,133.53,133.48,7.59223026]
[1718853126589,7.56,133.49,133.48,0.10053026]
[1718853128209,7.8061623,133.53,133.49,7.491]
[1718853128417,30.24,133.56,133.48,0.10053026]
[1718853128589,7.56,133.52,133.51,7.49]
[1718853129684,7.56,133.52,133.5,7.4904]
[1718853132881,7.80412043,133.56,133.51,0.34]
[1718853133103,7.56,133.55,133.53,7.4888]
[1718853133304,7.4851,133.6,133.54,7.4883]
[1718853133504,7.56,133.56,133.53,7.4887]
[1718853133698,7.80209668,133.6,133.51,7.9]
[1718853133892,7.4849,133.61,133.53,7.73]
[1718853133893,7.56,133.58,133.53,7.73]
[1718853134095,7.56,133.58,133.54,0.34]
[1718853134691,7.4849,133.61,133.54,0.34]
[1718853134990,15.2852273,133.62,133.56,7.4869]
[1718853135195,7.56,133.59,133.57,7.4862]
[1718853135396,7.8012273,133.62,133.57,7.4862]
[1718853135630,7.4835,133.63,133.57,7.4862]
[1718853136186,7.4835,133.63,133.58,7.4861]
[1718853136388,7.4835,133.63,133.57,7.4864]
[1718853141413,56.64973833,133.65,133.59,7.4855]
[1718853141613,42.64,133.64,133.58,7.486]
[1718853141817,7.4836,133.63,133.58,7.486]
[1718853142319,50.1229,133.64,133.59,7.4855]
[1718853143208,7.79554612,133.65,133.62,7.4835]
[1718853143523,30.0,133.63,133.62,7.4835]
[1718853143944,52.97339436,133.69,133.62,0.51]
[1718853144101,45.49319436,133.69,133.62,6.563]
[1718853144305,37.7003,133.69,133.57,6.393]
[1718853144513,7.4846,133.61,133.56,15.789]
[1718853144708,7.4844,133.62,133.56,15.789]
[1718853144925,7.4844,133.62,133.56,23.2762]
[1718853145131,7.4845,133.61,133.56,15.789]
[1718853145427,7.4829,133.64,133.58,7.4859]
[1718853145613,20.0,133.63,133.58,7.4859]
[1718853147006,27.4833,133.63,133.57,7.4865]
[1718853147217,27.4833,133.63,133.57,7.6565]
[1718853147531,7.4839,133.62,133.57,7.6565]
[1718853148412,7.4839,133.62,133.57,0.17]
[1718853148612,7.4848,133.61,133.56,16.129]
[1718853149316,7.4841,133.62,133.56,23.6161]
[1718853149825,20.0,133.63,133.56,15.959]
[1718853150121,7.485,133.6,133.55,7.4878]
[1718853150327,30.1246,133.61,133.55,7.4878]
[1718853150530,7.4851,133.6,133.54,13.8811]
[1718853151327,7.4851,133.6,133.55,0.51]
[1718853153629,42.64,133.63,133.55,0.51]
[1718853153823,42.64,133.63,133.57,7.4867]
[1718853154137,50.1235,133.63,133.57,7.4867]
[1718853154315,30.1235,133.63,133.57,7.4867]
[1718853155632,7.4835,133.63,133.57,7.4867]
[1718853157628,7.4835,133.63,133.58,7.486]
[1718853159231,7.4835,133.63,133.57,7.4865]
[1718853160329,22.64,133.64,133.59,7.4854]
[1718853160518,22.64,133.64,133.6,7.6549]
[1718853160721,30.1232,133.64,133.58,23.0011]
[1718853161037,30.1232,133.64,133.58,22.8311]
[1718853161223,7.4834,133.63,133.58,22.8311]
[1718853161431,7.55,133.59,133.58,22.8311]
[1718853162519,7.55,133.59,133.58,23.0011]
[1718853162833,7.55,133.59,133.58,22.8311]
[1718853163024,7.55,133.59,133.58,15.3455]
[1718853165934,7.55,133.59,133.58,22.8316]
[1718853166240,7.55,133.59,133.56,7.4868]
[1718853166455,7.55,133.57,133.56,7.4868]
[1718853167035,37.6835,133.63,133.54,22.8436]
[1718853167346,30.2,133.63,133.59,7.4852]
[1718853167531,7.55,133.6,133.59,7.4852]
[1718853168031,7.55,133.6,133.58,7.4858]
[1718853168231,7.55,133.59,133.58,7.4858]
[1718853171447,7.55,133.59,133.57,7.4864]
[1718853171944,7.55,133.58,133.54,22.8436]
[1718853172147,7.55,133.57,133.55,0.17]
[1718853173044,7.55,133.57,133.55,0.34]
[1718853173247,7.55,133.57,133.56,7.4872]
[1718853173973,7.55,133.57,133.55,0.34]
[1718853173974,7.55,133.58,133.57,7.4866]
[1718853175744,7.4841,133.62,133.57,7.4866]
[1718853175947,7.55,133.58,133.57,7.4866]
[1718853176244,7.55,133.58,133.56,7.487]
[1718853178439,7.55,133.57,133.56,7.487]
[1718853181956,30.2,133.63,133.56,7.657]
[1718853182144,7.79913503,133.65,133.56,7.657]
[1718853182145,7.79913503,133.65,133.57,0.68]
[1718853182455,7.55,133.61,133.59,7.4853]
[1718853182956,7.55,133.6,133.59,7.4853]
[1718853183748,7.55,133.6,133.59,52.4853]
[1718853184247,11.72473375,133.65,133.59,45.17]
[1718853184446,7.79913503,133.65,133.64,7.4827]
[1718853184853,7.55,133.66,133.63,7.483]
[1718853185045,7.55,133.64,133.61,0.17]
[1718853185244,7.55,133.64,133.63,7.4833]
[1718853185445,7.55,133.64,133.63,52.4833]
[1718853187347,7.55,133.65,133.63,52.4833]
[1718853187863,7.55,133.65,133.64,7.4827]
[1718853188450,7.79230596,133.69,133.64,7.4827]
[1718853188644,7.55,133.65,133.64,7.4827]
[1718853189451,15.27230596,133.69,133.64,7.4827]
[1718853189663,7.55,133.65,133.64,7.4827]
[1718853190259,7.55,133.65,133.63,45.0]
[1718853190476,7.55,133.64,133.63,52.4833]
[1718853191460,7.55,133.64,133.63,45.0]
[1718853191872,7.55,133.64,133.63,52.4833]
[1718853192977,7.55,133.65,133.63,52.4833]
[1718853193179,7.55,133.64,133.63,52.4833]
[1718853194964,7.55,133.65,133.63,52.4833]
[1718853195563,7.55,133.65,133.64,7.4827]
[1718853196495,7.55,133.66,133.64,7.4827]
[1718853196775,7.4789,133.71,133.64,0.17]
[1718853196981,7.55,133.68,133.65,7.4819]
[1718853197878,7.55,133.67,133.65,7.4819]
[1718853199255,7.4789,133.71,133.66,7.4816]
[1718853199461,7.55,133.68,133.66,7.4816]
[1718853200460,6.01505003,133.73,133.66,7.4816]
[1718853200662,7.55,133.68,133.67,7.4809]
[1718853200961,7.55,133.68,133.66,7.4814]
[1718853201682,7.55,133.68,133.65,7.6519]
[1718853201857,7.55,133.67,133.65,0.17]
[1718853202062,7.55,133.67,133.65,7.822]
[1718853207386,7.55,133.68,133.65,7.822]
[1718853208583,7.55,133.68,133.66,7.4814]
[1718853208767,7.4791,133.71,133.66,7.4814]
[1718853208972,7.55,133.68,133.66,7.4814]
[1718853209963,7.4785,133.72,133.67,7.8211]
[1718853210170,7.55,133.68,133.67,7.6511]
[1718853210386,7.55,133.68,133.67,7.8211]
[1718853211695,7.55,133.68,133.66,7.4815]
[1718853212275,15.28162441,133.73,133.68,7.4805]
[1718853212477,7.55,133.69,133.68,7.4805]
[1718853212675,7.55,133.7,133.68,7.4805]
[1718853212883,7.80332441,133.73,133.69,7.4799]
[1718853213080,7.55,133.7,133.68,7.4804]
[1718853214404,7.55,133.7,133.69,7.4799]
[1718853214594,7.55,133.72,133.7,7.4791]
[1718853214979,7.55,133.71,133.69,7.6497]
[1718853215178,7.55,133.71,133.7,7.4794]
[1718853215379,7.55,133.71,133.69,7.6497]
[1718853215592,7.55,133.71,133.7,7.4794]
[1718853217103,7.4768,133.75,133.7,7.4794]
[1718853217398,7.55,133.71,133.7,7.4794]
[1718853217780,7.4768,133.75,133.7,7.4794]
[1718853218103,7.55,133.71,133.7,7.4794]
[1718853218481,7.4763,133.76,133.71,7.4784]
[1718853218688,16.0613,133.72,133.61,22.2226]
[1718853218994,7.48,133.69,133.61,22.2226]
[1718853219196,7.55,133.64,133.63,7.4832]
[1718853219383,7.55,133.64,133.62,7.4837]
[1718853219592,7.55,133.64,133.61,22.2226]
[1718853219888,60.2,133.7,133.61,22.2226]
[1718853220095,7.55,133.64,133.63,7.4833]
[1718853220305,67.6796,133.7,133.64,7.4826]
[1718853220604,7.55,133.65,133.64,7.4826]
[1718853220798,67.6796,133.7,133.64,7.8226]
[1718853221000,7.55,133.65,133.64,7.8226]
[1718853221211,7.55,133.65,133.62,7.4837]
[1718853221382,7.55,133.64,133.61,22.3926]
[1718853221589,7.55,133.64,133.63,7.4833]
[1718853222306,7.55,133.64,133.62,0.17]
[1718853222608,7.55,133.63,133.58,7.4855]
[1718853222778,7.55,133.63,133.59,7.4855]
[1718853222977,7.55,133.6,133.57,7.4863]
[1718853223182,7.55,133.58,133.57,7.4863]
[1718853224188,7.55,133.58,133.57,7.8263]
[1718853226891,7.55,133.59,133.58,7.4861]
[1718853227092,7.55,133.59,133.58,7.6561]
[1718853237313,7.55,133.59,133.55,1.30357828]
[1718853237613,7.55,133.56,133.55,1.30357828]
[1718853239716,7.55,133.56,133.55,8.79137828]
[1718853239902,7.55,133.56,133.54,7.4881]
[1718853240107,7.55,133.55,133.54,7.4881]
[1718853240412,7.80897516,133.62,133.57,7.4863]
[1718853240596,46.6326,133.63,133.57,7.4863]
[1718853240797,7.55,133.58,133.57,7.4863]
[1718853242297,7.55,133.58,133.54,0.17]
[1718853242504,7.55,133.55,133.53,0.17]
[1718853242816,7.55,133.55,133.54,7.4883]
[1718853243928,7.55,133.57,133.55,7.4872]
[1718853244115,27.4841,133.62,133.54,0.17]
[1718853244300,7.55,133.58,133.55,0.17]
[1718853244605,7.55,133.58,133.56,7.4869]
[1718853244914,7.55,133.58,133.57,7.4867]
[1718853245816,7.55,133.6,133.58,7.4857]
[1718853246400,7.55,133.59,133.57,7.4865]
[1718853247117,13.52464791,133.62,133.57,7.4865]
[1718853247310,7.55,133.59,133.57,7.4865]
[1718853249823,16.4326,133.63,133.59,7.4852]
[1718853250000,7.55,133.62,133.61,7.484]
[1718853250907,7.55,133.62,133.6,7.4847]
[1718853251228,7.55,133.61,133.6,7.4847]
[1718853252024,7.80919593,133.65,133.61,7.484]
[1718853252315,7.55,133.62,133.61,7.4844]
[1718853260134,7.55,133.62,133.55,21.5961]
[1718853260347,7.55,133.63,133.55,21.5961]
[1718853260348,7.55,133.59,133.55,21.5961]
[1718853260523,7.55,133.59,133.57,7.4863]
[1718853260719,7.55,133.59,133.58,7.4861]
[1718853261942,7.55,133.6,133.58,7.486]
[1718853262349,7.55,133.59,133.58,7.486]
[1718853267164,7.55,133.59,133.56,0.17]
[1718853267456,7.55,133.58,133.57,7.4867]
[1718853267839,7.55,133.59,133.57,7.4867]
[1718853268238,7.55,133.59,133.58,7.4861]
[1718853273741,16.3353,133.62,133.56,0.51]
[1718853273946,7.4829,133.64,133.59,7.4851]
[1718853274148,7.55,133.61,133.59,7.4851]
[1718853277148,23.71489593,133.65,133.6,0.17]
[1718853277342,7.55,133.64,133.61,7.4839]
[1718853277536,23.71489593,133.65,133.62,7.4835]
[1718853277741,7.80919593,133.65,133.64,7.4827]
[1718853278133,15.0115,133.69,133.64,7.4827]
[1718853278134,15.0115,133.69,133.64,7.4824]
[1718853278335,7.55,133.67,133.65,7.4818]
[1718853279437,15.0115,133.69,133.66,7.4816]
[1718853279660,15.28248955,133.71,133.66,7.4816]
[1718853279661,7.55,133.68,133.66,7.4816]
[1718853281463,21.16952348,133.71,133.66,7.4816]
[1718853281665,7.55,133.68,133.66,7.4816]
[1718853282767,7.55,133.67,133.65,7.6519]
[1718853283143,7.55,133.66,133.62,0.34]
[1718853283462,30.2,133.7,133.62,0.34]
[1718853283463,7.55,133.65,133.63,0.17]
[1718853284173,7.55,133.65,133.63,7.653]
[1718853285554,7.55,133.65,133.64,7.4827]
[1718853288934,30.2,133.7,133.65,7.4816]
[1718853289140,7.55,133.67,133.66,7.4816]
[1718853289966,7.55,133.67,133.66,7.6516]
[1718853290549,21.16962348,133.71,133.66,7.6516]
[1718853290751,7.55,133.67,133.66,7.6516]
[1718853291571,7.55,133.67,133.66,0.17]
[1718853292865,7.55,133.67,133.66,7.8216]
[1718853293042,7.55,133.67,133.66,7.6516]
[1718853293670,7.55,133.67,133.66,7.8216]
[1718853293974,27.55,133.67,133.59,7.4854]
[1718853294142,7.55,133.63,133.59,7.4854]
[1718853294443,7.55,133.6,133.55,8.85367811]
[1718853294847,7.55,133.6,133.57,7.4865]
[1718853296142,7.55,133.6,133.58,0.51]
[1718853296870,7.55,133.6,133.58,7.996]
[1718853297848,15.67145278,133.66,133.59,7.4855]
[1718853298064,7.55,133.6,133.59,7.4855]
[1718853298252,7.55,133.6,133.59,7.9955]
[1718853298851,7.55,133.6,133.59,0.51]
[1718853299277,7.55,133.6,133.55,1.30367811]
[1718853299583,7.55,133.57,133.55,1.30367811]
[1718853300457,7.55,133.56,133.51,22.3679]
[1718853300658,7.55,133.54,133.53,7.4889]
[1718853300863,7.55,133.55,133.54,7.4882]
[1718853302348,7.55,133.56,133.55,7.4878]
[1718853302758,7.55,133.56,133.55,7.8278]
[1718853303158,30.2,133.63,133.56,0.17]
[1718853303356,7.55,133.58,133.57,7.4865]
[1718853303672,7.55,133.58,133.57,0.51]
[1718853304047,7.55,133.58,133.57,8.1663]
[1718853304269,30.2,133.63,133.57,0.34]
[1718853304572,7.55,133.58,133.53,7.4884]
[1718853304866,15.0382,133.58,133.54,7.4883]
[1718853305172,7.55,133.55,133.54,7.4883]
[1718853305471,7.55,133.55,133.52,7.4894]
[1718853305671,7.55,133.53,133.5,8.79525218]
[1718853305851,7.55,133.51,133.5,7.4902]
[1718853306973,7.55,133.51,133.5,8.1702]
[1718853307148,30.2,133.56,133.52,7.4893]
[1718853307355,22.5246,133.58,133.53,7.6589]
[1718853307557,45.1846,133.58,133.53,7.6589]
[1718853308086,15.0382,133.58,133.55,7.6576]
[1718853308374,22.66,133.6,133.55,7.6576]
[1718853309179,7.485,133.61,133.55,7.6576]
[1718853309359,30.145,133.61,133.56,7.8272]
[1718853309560,30.145,133.61,133.56,7.6572]
[1718853309873,22.66,133.61,133.57,7.6565]
[1718853310078,13.92538747,133.63,133.58,0.68]
[1718853310284,15.29581304,133.63,133.58,7.8258]
[1718853310577,7.81241304,133.63,133.59,0.17]
[1718853310975,7.4843,133.62,133.58,0.17]
[1718853312087,7.81241304,133.63,133.58,7.656]
[1718853312088,15.29591304,133.63,133.58,7.656]
[1718853313057,7.81241304,133.63,133.59,7.6555]
[1718853313274,7.81241304,133.63,133.6,0.34]
[1718853313481,7.81241304,133.63,133.6,0.17]
[1718853313862,7.81241304,133.63,133.59,0.34]
[1718853314172,7.81241304,133.63,133.58,0.34]
[1718853314173,15.29571304,133.63,133.58,7.656]
[1718853314359,7.81241304,133.63,133.58,7.656]
[1718853314561,15.29581304,133.63,133.59,0.17]
[1718853316058,7.81241304,133.63,133.59,0.17]
[1718853316260,7.81241304,133.63,133.59,7.6555]
[1718853317581,7.4851,133.6,133.55,7.4874]
[1718853320474,7.4862,133.58,133.54,0.51]
[1718853320680,30.1462,133.58,133.54,0.17]
[1718853321881,22.66,133.58,133.54,7.6583]
[1718853324277,30.1461,133.58,133.54,7.6583]
[1718853324585,22.66,133.58,133.54,7.6583]
[1718853325381,7.4873,133.56,133.52,7.4894]
[1718853325683,7.4873,133.56,133.5,23.2252]
[1718853325684,30.1478,133.55,133.5,7.4904]
[1718853325884,22.66,133.55,133.51,7.4896]
[1718853326184,22.66,133.55,133.52,7.4894]
[1718853326899,22.66,133.55,133.51,7.4898]
[1718853327500,7.56,133.52,133.47,1.30516784]
[1718853327684,7.56,133.48,133.47,1.30516784]
[1718853327912,7.56,133.48,133.43,22.4132]
[1718853328074,7.56,133.45,133.42,5.55]
[1718853328402,7.56,133.43,133.42,5.55]
[1718853328792,15.3562,133.47,133.42,13.0449]
[1718853328992,7.56,133.43,133.42,13.0449]
[1718853329387,15.3562,133.47,133.43,7.4944]
[1718853330296,22.8488,133.47,133.42,13.0448]
[1718853330978,7.4929,133.46,133.42,5.55]
[1718853331374,22.8487,133.47,133.42,5.55]
[1718853331579,22.8487,133.47,133.42,13.045]
[1718853333704,7.4925,133.47,133.42,13.045]
[1718853334005,30.1909,133.5,133.43,45.68]
[1718853334197,30.1911,133.5,133.44,7.4936]